[Event "*** Titled Tuesday Blitz"]
[Site "Chess.com"]
[Date "2019.01.01"]
[Round "3"]
[White "robbykevlishvili"]
[Black "PrinceMurad09"]
[Result "1-0"]
[WhiteElo "2779"]
[BlackElo "2480"]
[TimeControl "180+2"]
[EndTime "13:38:47 PST"]
[Termination "robbykevlishvili won by resignation"]

1. e4 {[%clk 0:03:01.9]} 1... c5 {[%clk 0:03:00.3]} 2. Nc3 {[%clk 0:03:03]} 2...
Nc6 {[%clk 0:02:59.8]} 3. Nge2 {[%clk 0:03:04.5]} 3... g6 {[%clk 0:03:00.9]} 4.
g3 {[%clk 0:03:02.5]} 4... Bg7 {[%clk 0:03:02.1]} 5. Bg2 {[%clk 0:03:04.1]} 5...
e6 {[%clk 0:03:03.4]} 6. O-O {[%clk 0:03:04.7]} 6... Nge7 {[%clk 0:03:04.6]} 7.
f4 {[%clk 0:03:06.3]} 7... O-O {[%clk 0:03:05.2]} 8. d3 {[%clk 0:03:07.8]} 8...
d5 {[%clk 0:03:05.4]} 9. Qe1 {[%clk 0:03:07.3]} 9... Nd4 {[%clk 0:03:03]} 10.
Nxd4 {[%clk 0:03:07.9]} 10... cxd4 {[%clk 0:03:04.1]} 11. Ne2 {[%clk 0:03:08.2]}
11... dxe4 {[%clk 0:03:04.8]} 12. Bxe4 {[%clk 0:03:08.8]} 12... Qc7 {[%clk
0:02:56.4]} 13. c4 {[%clk 0:03:08.4]} 13... dxc3 {[%clk 0:02:55.8]} 14. bxc3
{[%clk 0:03:10.3]} 14... Bd7 {[%clk 0:02:55.9]} 15. Ba3 {[%clk 0:03:10.1]} 15...
Rfe8 {[%clk 0:02:55.3]} 16. Rb1 {[%clk 0:03:07.8]} 16... Bc6 {[%clk 0:02:56]}
17. Qf2 {[%clk 0:03:04.2]} 17... b6 {[%clk 0:02:40.1]} 18. Rbc1 {[%clk
0:02:58.9]} 18... Rad8 {[%clk 0:02:39.1]} 19. Bxe7 {[%clk 0:02:56.6]} 19... Rxe7
{[%clk 0:02:39.6]} 20. Bxc6 {[%clk 0:02:57.1]} 20... Qxc6 {[%clk 0:02:40.4]} 21.
d4 {[%clk 0:02:59]} 21... Rc7 {[%clk 0:02:35.3]} 22. Qe3 {[%clk 0:02:59.8]}
22... Rdc8 {[%clk 0:02:36]} 23. g4 {[%clk 0:02:59.8]} 23... Qd6 {[%clk
0:02:27.5]} 24. Rc2 {[%clk 0:02:55.9]} 24... Qd5 {[%clk 0:02:03.6]} 25. Rfc1
{[%clk 0:02:56.3]} 25... Bf8 {[%clk 0:02:03.1]} 26. Kf2 {[%clk 0:02:54.5]} 26...
Ba3 {[%clk 0:02:02.1]} 27. Rd1 {[%clk 0:02:56]} 27... Bb4 {[%clk 0:02:01]} 28.
Qf3 {[%clk 0:02:47.3]} 28... Qxf3+ {[%clk 0:01:58.3]} 29. Kxf3 {[%clk
0:02:49.2]} 29... Bd6 {[%clk 0:01:42.1]} 30. Rb1 {[%clk 0:02:41]} 30... Rc4
{[%clk 0:01:38]} 31. Ke4 {[%clk 0:02:40.4]} 31... Kf8 {[%clk 0:01:38.9]} 32. Kd3
{[%clk 0:02:41.4]} 32... Ke7 {[%clk 0:01:39.2]} 33. Rb5 {[%clk 0:02:37.7]} 33...
Ra4 {[%clk 0:01:32.4]} 34. h3 {[%clk 0:02:35.4]} 34... h6 {[%clk 0:01:28.7]} 35.
c4 {[%clk 0:02:21.9]} 35... Ra3+ {[%clk 0:01:29]} 36. Rb3 {[%clk 0:02:20.7]}
36... Ra5 {[%clk 0:01:26.9]} 37. Rb5 {[%clk 0:02:09.5]} 37... Ra3+ {[%clk
0:01:25.7]} 38. Rb3 {[%clk 0:02:09.2]} 38... Ra5 {[%clk 0:01:26.8]} 39. Ke4
{[%clk 0:02:10.2]} 39... h5 {[%clk 0:01:27.4]} 40. g5 {[%clk 0:02:10.9]} 40...
Ra4 {[%clk 0:01:25.9]} 41. Kd3 {[%clk 0:02:11.2]} 41... Ra5 {[%clk 0:01:25.6]}
42. h4 {[%clk 0:02:11.8]} 42... Kd7 {[%clk 0:01:24.2]} 43. Ke4 {[%clk
0:02:10.3]} 43... Ra4 {[%clk 0:01:24.5]} 44. Kd3 {[%clk 0:02:06.1]} 44... Ra5
{[%clk 0:01:25.2]} 45. Rcb2 {[%clk 0:01:30.2]} 45... Ra4 {[%clk 0:01:23.2]} 46.
Rc3 {[%clk 0:01:30.4]} 46... Bb4 {[%clk 0:01:18.2]} 47. Rcc2 {[%clk 0:01:30.7]}
47... Ba3 {[%clk 0:01:18.2]} 48. Rb1 {[%clk 0:01:30]} 48... Bd6 {[%clk
0:01:18.6]} 49. Rf1 {[%clk 0:01:29.1]} 49... Ra5 {[%clk 0:01:12.1]} 50. Ke4
{[%clk 0:01:28.9]} 50... Ra4 {[%clk 0:01:12.5]} 51. Rfc1 {[%clk 0:01:28.2]}
51... Ra3 {[%clk 0:01:05.3]} 52. c5 {[%clk 0:01:26.6]} 52... bxc5 {[%clk
0:00:59.8]} 53. dxc5 {[%clk 0:01:28.5]} 53... Ra4+ {[%clk 0:00:59.1]} 54. Ke3
{[%clk 0:01:22.5]} 54... Ra3+ {[%clk 0:00:49.2]} 55. Kf2 {[%clk 0:01:09.9]}
55... Be7 {[%clk 0:00:43.1]} 56. Ng3 {[%clk 0:01:10.6]} 56... Ra4 {[%clk
0:00:43.1]} 57. Kf3 {[%clk 0:01:11.1]} 57... Kc6 {[%clk 0:00:39.9]} 58. Ne4
{[%clk 0:01:10.4]} 58... Rd8 {[%clk 0:00:41.1]} 59. Nd6 {[%clk 0:01:05.1]} 59...
Bxd6 {[%clk 0:00:21.2]} 60. cxd6+ {[%clk 0:01:07]} 60... Kxd6 {[%clk 0:00:23.1]}
61. Rd1+ {[%clk 0:01:01.6]} 61... Ke7 {[%clk 0:00:21.8]} 62. Rc7+ {[%clk
0:01:02.6]} 62... Ke8 {[%clk 0:00:22.5]} 63. Rxd8+ {[%clk 0:01:02.5]} 63... Kxd8
{[%clk 0:00:24.4]} 64. Rxf7 {[%clk 0:01:04.4]} 64... Rxa2 {[%clk 0:00:25.7]} 65.
Rg7 {[%clk 0:01:04.1]} 65... Ra3+ {[%clk 0:00:26.3]} 66. Ke4 {[%clk 0:01:04.5]}
66... Rh3 {[%clk 0:00:20.6]} 67. Rxg6 {[%clk 0:01:05.7]} 67... Rxh4 {[%clk
0:00:22.5]} 68. Rxe6 {[%clk 0:01:06.5]} 68... Rg4 {[%clk 0:00:23.7]} 69. Rh6
{[%clk 0:01:02.9]} 69... h4 {[%clk 0:00:24.3]} 70. Kf5 {[%clk 0:01:04.1]} 70...
Rg1 {[%clk 0:00:25.1]} 71. Rxh4 {[%clk 0:01:05.2]} 71... Ke8 {[%clk 0:00:27]}
72. Rh8+ {[%clk 0:01:06.1]} 72... Kf7 {[%clk 0:00:28.3]} 73. Rh7+ {[%clk
0:01:07.7]} 73... Kg8 {[%clk 0:00:28.7]} 74. Rxa7 {[%clk 0:01:09.6]} 74... Rb1
{[%clk 0:00:30.4]} 75. Kg4 {[%clk 0:01:08.5]} 75... Rg1+ {[%clk 0:00:31.1]} 76.
Kh5 {[%clk 0:01:09.7]} 76... Rb1 {[%clk 0:00:32.1]} 77. f5 {[%clk 0:01:10.3]}
77... Rb5 {[%clk 0:00:33]} 78. Kg6 {[%clk 0:01:09.1]} 78... Rb6+ {[%clk
0:00:33]} 79. f6 {[%clk 0:01:10.2]} 79... Rb8 {[%clk 0:00:34.9]} 80. Rg7+ {[%clk
0:01:10]} 80... Kh8 {[%clk 0:00:35]} 81. Rh7+ {[%clk 0:01:11.5]} 81... Kg8
{[%clk 0:00:36.2]} 82. f7+ {[%clk 0:01:13]} 1-0

[Event "*** Titled Tuesday Blitz"]
[Site "Chess.com"]
[Date "2019.01.01"]
[Round "3"]
[White "platy3"]
[Black "VitaliyBernadskiy"]
[Result "1/2-1/2"]
[WhiteElo "2818"]
[BlackElo "2747"]
[TimeControl "180+2"]
[EndTime "13:39:07 PST"]
[Termination "Game drawn by repetition"]

1. e4 {[%clk 0:03:01.3]} 1... c6 {[%clk 0:02:57.3]} 2. d4 {[%clk 0:03:00.3]}
2... d5 {[%clk 0:02:51.5]} 3. e5 {[%clk 0:03:01.6]} 3... Bf5 {[%clk 0:02:47.9]}
4. Nf3 {[%clk 0:03:03]} 4... e6 {[%clk 0:02:48.6]} 5. Be2 {[%clk 0:03:04.3]}
5... Nd7 {[%clk 0:02:47.8]} 6. O-O {[%clk 0:03:05.4]} 6... h6 {[%clk 0:02:48.8]}
7. a4 {[%clk 0:03:06.5]} 7... a6 {[%clk 0:02:36.3]} 8. Nbd2 {[%clk 0:02:57.6]}
8... Ne7 {[%clk 0:02:30.7]} 9. Nb3 {[%clk 0:02:56.8]} 9... g5 {[%clk 0:02:29.3]}
10. a5 {[%clk 0:02:56.3]} 10... Bg7 {[%clk 0:02:29.5]} 11. Be3 {[%clk
0:02:53.1]} 11... O-O {[%clk 0:02:29]} 12. h4 {[%clk 0:02:31.9]} 12... g4 {[%clk
0:02:19.6]} 13. Ne1 {[%clk 0:02:32.5]} 13... f6 {[%clk 0:02:17.8]} 14. exf6
{[%clk 0:02:17.7]} 14... Nxf6 {[%clk 0:02:19.7]} 15. Nd3 {[%clk 0:02:12.9]}
15... Ng6 {[%clk 0:02:18.5]} 16. g3 {[%clk 0:02:13.6]} 16... Ne4 {[%clk
0:02:13.9]} 17. Bxg4 {[%clk 0:02:08.2]} 17... Nxh4 {[%clk 0:02:14.8]} 18. Nbc5
{[%clk 0:01:57.3]} 18... Qf6 {[%clk 0:01:56.1]} 19. Nd7 {[%clk 0:01:50.1]} 19...
Qe7 {[%clk 0:01:41.3]} 20. Nxf8 {[%clk 0:01:40.4]} 20... Rxf8 {[%clk 0:01:42.5]}
21. Ne5 {[%clk 0:01:40.1]} 21... Bxe5 {[%clk 0:01:23.7]} 22. dxe5 {[%clk
0:01:36.6]} 22... Qg7 {[%clk 0:01:24.3]} 23. Bxf5 {[%clk 0:01:28.4]} 23... Rxf5
{[%clk 0:01:23.5]} 24. Ra4 {[%clk 0:01:06.9]} 24... Nf3+ {[%clk 0:00:46.8]} 25.
Kg2 {[%clk 0:01:06.8]} 25... Nh4+ {[%clk 0:00:42.5]} 26. Kh1 {[%clk 0:00:53.5]}
26... Nf3 {[%clk 0:00:38.9]} 27. Kg2 {[%clk 0:00:46.1]} 27... Nh4+ {[%clk
0:00:39.2]} 28. Kh1 {[%clk 0:00:44.4]} 28... Nf3 {[%clk 0:00:39]} 29. Rxe4
{[%clk 0:00:32.1]} 29... dxe4 {[%clk 0:00:38.4]} 30. Kg2 {[%clk 0:00:26.8]}
30... Nh4+ {[%clk 0:00:37.6]} 31. Kh1 {[%clk 0:00:27.7]} 31... Nf3 {[%clk
0:00:35.4]} 32. Kg2 {[%clk 0:00:29]} 32... Qg4 {[%clk 0:00:30.3]} 33. Rh1 {[%clk
0:00:22.2]} 33... Nh4+ {[%clk 0:00:31.1]} 34. Kh2 {[%clk 0:00:23.7]} 34... Nf3+
{[%clk 0:00:27.1]} 35. Kg2 {[%clk 0:00:25.2]} 35... Nh4+ {[%clk 0:00:27.1]} 36.
Kh2 {[%clk 0:00:26.6]} 36... Nf3+ {[%clk 0:00:25.5]} 37. Kg2 {[%clk 0:00:28.1]}
37... Nh4+ {[%clk 0:00:25.7]} 38. Kh2 {[%clk 0:00:29.6]} 38... Qxd1 {[%clk
0:00:23.5]} 39. Rxd1 {[%clk 0:00:30.1]} 39... Nf3+ {[%clk 0:00:25.4]} 40. Kg2
{[%clk 0:00:27.5]} 40... Rxe5 {[%clk 0:00:27.3]} 41. Rd8+ {[%clk 0:00:24.5]}
41... Kf7 {[%clk 0:00:28.2]} 42. Rd7+ {[%clk 0:00:25.8]} 42... Kg6 {[%clk
0:00:29.6]} 43. Rxb7 {[%clk 0:00:26.7]} 43... Rxa5 {[%clk 0:00:30.5]} 44. Rb6
{[%clk 0:00:25.1]} 44... Ra1 {[%clk 0:00:31.2]} 45. Kh3 {[%clk 0:00:16.4]} 45...
h5 {[%clk 0:00:30.3]} 46. Rxc6 {[%clk 0:00:12.6]} 46... Kf5 {[%clk 0:00:25.7]}
47. Rc5+ {[%clk 0:00:10.5]} 47... e5 {[%clk 0:00:26.5]} 48. Rc8 {[%clk 0:00:12]}
48... Rh1+ {[%clk 0:00:25.6]} 49. Kg2 {[%clk 0:00:13.4]} 49... Rg1+ {[%clk
0:00:26.6]} 50. Kh3 {[%clk 0:00:14.9]} 50... Ne1 {[%clk 0:00:23.5]} 51. Rf8+
{[%clk 0:00:15.4]} 51... Ke6 {[%clk 0:00:23]} 52. Kh2 {[%clk 0:00:12.3]} 52...
Rf1 {[%clk 0:00:23.6]} 53. Rh8 {[%clk 0:00:10]} 53... Nf3+ {[%clk 0:00:18.7]}
54. Kg2 {[%clk 0:00:11.4]} 54... Rg1+ {[%clk 0:00:18.6]} 55. Kh3 {[%clk
0:00:12.9]} 55... Rh1+ {[%clk 0:00:16.7]} 56. Kg2 {[%clk 0:00:14.3]} 56... Rg1+
{[%clk 0:00:17.8]} 57. Kh3 {[%clk 0:00:15.8]} 57... Rh1+ {[%clk 0:00:19.1]} 58.
Kg2 {[%clk 0:00:17.3]} 58... Rg1+ {[%clk 0:00:19.3]} 59. Kh3 {[%clk 0:00:18.8]}
59... Rh1+ {[%clk 0:00:16.8]} 60. Kg2 {[%clk 0:00:20.2]} 60... Rg1+ {[%clk
0:00:17.9]} 61. Kh3 {[%clk 0:00:21.8]} 1/2-1/2

[Event "*** Titled Tuesday Blitz"]
[Site "Chess.com"]
[Date "2019.01.01"]
[Round "3"]
[White "olksuna"]
[Black "GulamaliRises"]
[Result "1/2-1/2"]
[WhiteElo "2480"]
[BlackElo "2643"]
[TimeControl "180+2"]
[EndTime "13:39:07 PST"]
[Termination "Game drawn - insufficient material"]

1. c4 {[%clk 0:02:56.5]} 1... e5 {[%clk 0:02:54.6]} 2. g3 {[%clk 0:02:54.9]}
2... Nf6 {[%clk 0:02:54.6]} 3. Bg2 {[%clk 0:02:55.9]} 3... d5 {[%clk 0:02:55.6]}
4. cxd5 {[%clk 0:02:56.3]} 4... Nxd5 {[%clk 0:02:57.5]} 5. Nc3 {[%clk
0:02:55.8]} 5... Nb6 {[%clk 0:02:58.7]} 6. d3 {[%clk 0:02:55.9]} 6... Be7 {[%clk
0:02:59.6]} 7. Nf3 {[%clk 0:02:55.5]} 7... Nc6 {[%clk 0:03:00.4]} 8. O-O {[%clk
0:02:57]} 8... O-O {[%clk 0:03:01.5]} 9. Be3 {[%clk 0:02:57.5]} 9... Re8 {[%clk
0:03:02.2]} 10. a3 {[%clk 0:02:55.6]} 10... Bf8 {[%clk 0:03:02.5]} 11. Rc1
{[%clk 0:02:55.9]} 11... Nd4 {[%clk 0:02:40.8]} 12. Ne4 {[%clk 0:02:39.5]} 12...
a5 {[%clk 0:02:31.5]} 13. Re1 {[%clk 0:02:26.6]} 13... a4 {[%clk 0:02:30.9]} 14.
Nc5 {[%clk 0:02:00.9]} 14... Ra5 {[%clk 0:02:29.7]} 15. Ne4 {[%clk 0:01:39.9]}
15... Nb3 {[%clk 0:01:58.4]} 16. Rc2 {[%clk 0:01:29.2]} 16... Nd5 {[%clk
0:01:58.3]} 17. Bd2 {[%clk 0:01:26.7]} 17... Ra7 {[%clk 0:01:36.5]} 18. Nc3
{[%clk 0:01:26.9]} 18... Nb6 {[%clk 0:01:16.1]} 19. Nb5 {[%clk 0:01:24.9]} 19...
c6 {[%clk 0:01:12.8]} 20. Nxa7 {[%clk 0:01:25.3]} 20... Bd7 {[%clk 0:01:08]} 21.
Be3 {[%clk 0:01:20.7]} 21... Nd5 {[%clk 0:01:09.2]} 22. Nd2 {[%clk 0:01:14.6]}
22... Nxe3 {[%clk 0:01:05.4]} 23. fxe3 {[%clk 0:01:14.9]} 23... Qb6 {[%clk
0:01:07]} 24. Nxc6 {[%clk 0:00:58.1]} 24... Qxe3+ {[%clk 0:01:03.9]} 25. Kh1
{[%clk 0:00:58.7]} 25... bxc6 {[%clk 0:01:01.7]} 26. Nxb3 {[%clk 0:00:55.7]}
26... axb3 {[%clk 0:01:03.6]} 27. Rc4 {[%clk 0:00:56.5]} 27... Qb6 {[%clk
0:00:58.6]} 28. Qc1 {[%clk 0:00:54.7]} 28... c5 {[%clk 0:00:52]} 29. Bd5 {[%clk
0:00:33.9]} 29... Qd6 {[%clk 0:00:49.3]} 30. e4 {[%clk 0:00:32.2]} 30... Be6
{[%clk 0:00:34.8]} 31. Bxe6 {[%clk 0:00:32.6]} 31... Rxe6 {[%clk 0:00:34.5]} 32.
Qe3 {[%clk 0:00:32.5]} 32... Qd8 {[%clk 0:00:27.7]} 33. Rc3 {[%clk 0:00:30]}
33... Rb6 {[%clk 0:00:27.3]} 34. Kg2 {[%clk 0:00:29.4]} 34... h6 {[%clk
0:00:27.4]} 35. Rec1 {[%clk 0:00:28.2]} 35... Rb5 {[%clk 0:00:28]} 36. Rc4
{[%clk 0:00:28.2]} 36... g6 {[%clk 0:00:25]} 37. R1c3 {[%clk 0:00:28.2]} 37...
h5 {[%clk 0:00:26]} 38. a4 {[%clk 0:00:27.7]} 38... Rb8 {[%clk 0:00:24.5]} 39.
h4 {[%clk 0:00:22.7]} 39... Qd7 {[%clk 0:00:24.5]} 40. a5 {[%clk 0:00:22.2]}
40... Qb5 {[%clk 0:00:24.8]} 41. Rxc5 {[%clk 0:00:22.3]} 41... Bxc5 {[%clk
0:00:26]} 42. Qxc5 {[%clk 0:00:23.8]} 42... Kg7 {[%clk 0:00:03.3]} 43. Kf3
{[%clk 0:00:19.5]} 43... Kh7 {[%clk 0:00:03.2]} 44. Qc7 {[%clk 0:00:19.1]} 44...
Kg7 {[%clk 0:00:03.8]} 45. Qc5 {[%clk 0:00:15.4]} 45... f6 {[%clk 0:00:03.8]}
46. Ke3 {[%clk 0:00:13.8]} 46... Kh6 {[%clk 0:00:03.3]} 47. Qxb5 {[%clk
0:00:14.5]} 47... Rxb5 {[%clk 0:00:04.9]} 48. a6 {[%clk 0:00:15.8]} 48... Ra5
{[%clk 0:00:06.4]} 49. Rc6 {[%clk 0:00:16.4]} 49... Ra2 {[%clk 0:00:07.5]} 50.
Rxf6 {[%clk 0:00:12.8]} 50... Rxb2 {[%clk 0:00:08.9]} 51. Rb6 {[%clk 0:00:14.2]}
51... Ra2 {[%clk 0:00:09.5]} 52. Rxb3 {[%clk 0:00:15.1]} 52... Rxa6 {[%clk
0:00:11.1]} 53. Rb5 {[%clk 0:00:16.7]} 53... Re6 {[%clk 0:00:12.7]} 54. d4
{[%clk 0:00:17.6]} 54... exd4+ {[%clk 0:00:13.7]} 55. Kxd4 {[%clk 0:00:19.1]}
55... Rd6+ {[%clk 0:00:15.3]} 56. Rd5 {[%clk 0:00:19.2]} 56... Ra6 {[%clk
0:00:15.9]} 57. Ke5 {[%clk 0:00:20.6]} 57... Ra3 {[%clk 0:00:14.3]} 58. Kf4
{[%clk 0:00:19.9]} 58... Kg7 {[%clk 0:00:15.6]} 59. e5 {[%clk 0:00:19.6]} 59...
Ra4+ {[%clk 0:00:13.9]} 60. Kf3 {[%clk 0:00:20.8]} 60... Ra3+ {[%clk 0:00:15.3]}
61. Ke4 {[%clk 0:00:22.1]} 61... Rxg3 {[%clk 0:00:15.8]} 62. Rd7+ {[%clk
0:00:23.3]} 62... Kf8 {[%clk 0:00:15.5]} 63. e6 {[%clk 0:00:24.6]} 63... Rg4+
{[%clk 0:00:11.4]} 64. Ke5 {[%clk 0:00:25.9]} 64... Rxh4 {[%clk 0:00:12.8]} 65.
Ra7 {[%clk 0:00:16.2]} 65... Rh1 {[%clk 0:00:12.9]} 66. Kf6 {[%clk 0:00:14.1]}
66... Rf1+ {[%clk 0:00:13.4]} 67. Kxg6 {[%clk 0:00:15.5]} 67... h4 {[%clk
0:00:14.9]} 68. Rh7 {[%clk 0:00:14.5]} 68... Rf4 {[%clk 0:00:15.2]} 69. Kg5
{[%clk 0:00:15.2]} 69... Rf1 {[%clk 0:00:14]} 70. Rxh4 {[%clk 0:00:10.8]} 70...
Ke7 {[%clk 0:00:15.3]} 71. Re4 {[%clk 0:00:12.3]} 71... Rf6 {[%clk 0:00:16]} 72.
Re5 {[%clk 0:00:13.8]} 72... Rxe6 {[%clk 0:00:17.2]} 73. Rxe6+ {[%clk
0:00:15.3]} 73... Kxe6 {[%clk 0:00:19.1]} 1/2-1/2

[Event "*** Titled Tuesday Blitz"]
[Site "Chess.com"]
[Date "2019.01.01"]
[Round "3"]
[White "Didici"]
[Black "enriquetejedor"]
[Result "1-0"]
[WhiteElo "2613"]
[BlackElo "2547"]
[TimeControl "180+2"]
[EndTime "13:39:15 PST"]
[Termination "Didici won by checkmate"]

1. d4 {[%clk 0:03:01.7]} 1... d5 {[%clk 0:02:59.6]} 2. c4 {[%clk 0:03:02.3]}
2... dxc4 {[%clk 0:02:59.4]} 3. e4 {[%clk 0:03:03.5]} 3... c5 {[%clk 0:02:45.2]}
4. d5 {[%clk 0:03:00]} 4... e6 {[%clk 0:02:40.1]} 5. Bxc4 {[%clk 0:02:51]} 5...
Nf6 {[%clk 0:02:39.9]} 6. Nc3 {[%clk 0:02:48.7]} 6... exd5 {[%clk 0:02:35.4]} 7.
Nxd5 {[%clk 0:02:40.9]} 7... Nxd5 {[%clk 0:02:34.1]} 8. Bxd5 {[%clk 0:02:40.5]}
8... Be7 {[%clk 0:02:33.9]} 9. Ne2 {[%clk 0:02:23.2]} 9... O-O {[%clk
0:02:30.2]} 10. O-O {[%clk 0:02:24.1]} 10... Nd7 {[%clk 0:02:31]} 11. Nc3 {[%clk
0:02:21.7]} 11... Nf6 {[%clk 0:02:16.8]} 12. Bf4 {[%clk 0:02:14.6]} 12... a6
{[%clk 0:02:08.3]} 13. Qb3 {[%clk 0:01:55.8]} 13... Nxd5 {[%clk 0:01:53.9]} 14.
Nxd5 {[%clk 0:01:57.7]} 14... Bd6 {[%clk 0:01:52.7]} 15. e5 {[%clk 0:01:45]}
15... Bb8 {[%clk 0:01:11.5]} 16. Rad1 {[%clk 0:01:42]} 16... Be6 {[%clk
0:01:04.9]} 17. Qxb7 {[%clk 0:01:16.7]} 17... Ra7 {[%clk 0:00:59.2]} 18. Qc6
{[%clk 0:01:14.6]} 18... Rd7 {[%clk 0:00:42.5]} 19. Nc3 {[%clk 0:01:11.1]} 19...
Rd4 {[%clk 0:00:42.5]} 20. Be3 {[%clk 0:01:11.4]} 20... Bxe5 {[%clk 0:00:40.9]}
21. Qxc5 {[%clk 0:01:06.2]} 21... Rxd1 {[%clk 0:00:31.7]} 22. Rxd1 {[%clk
0:01:08.1]} 22... Qb8 {[%clk 0:00:32.7]} 23. g3 {[%clk 0:01:04.4]} 23... Rc8
{[%clk 0:00:33]} 24. Qa5 {[%clk 0:00:59.8]} 24... Bxc3 {[%clk 0:00:27.9]} 25.
bxc3 {[%clk 0:01:01.7]} 25... Bh3 {[%clk 0:00:23]} 26. Qxa6 {[%clk 0:00:30.6]}
26... h6 {[%clk 0:00:15.2]} 27. Bd4 {[%clk 0:00:20.9]} 27... Qc7 {[%clk
0:00:10.3]} 28. f3 {[%clk 0:00:20.8]} 28... Qe7 {[%clk 0:00:08.2]} 29. Kf2
{[%clk 0:00:15.6]} 29... Re8 {[%clk 0:00:08.5]} 30. Qd3 {[%clk 0:00:13.9]} 30...
Qe6 {[%clk 0:00:06.5]} 31. Qd2 {[%clk 0:00:11.3]} 31... Qc4 {[%clk 0:00:07]} 32.
a3 {[%clk 0:00:08.1]} 32... Bc8 {[%clk 0:00:08.2]} 33. Re1 {[%clk 0:00:07.6]}
33... Rd8 {[%clk 0:00:08.5]} 34. Re5 {[%clk 0:00:08.4]} 34... Bb7 {[%clk
0:00:08.8]} 35. g4 {[%clk 0:00:09.8]} 35... Qc6 {[%clk 0:00:09]} 36. Qe3 {[%clk
0:00:10.4]} 36... Ba6 {[%clk 0:00:09.8]} 37. Kg3 {[%clk 0:00:11.4]} 37... Bc4
{[%clk 0:00:10.3]} 38. Rh5 {[%clk 0:00:12.2]} 38... Be6 {[%clk 0:00:11.1]} 39.
Rc5 {[%clk 0:00:13.5]} 39... Qd6+ {[%clk 0:00:11.8]} 40. Kg2 {[%clk 0:00:12.9]}
40... Qa6 {[%clk 0:00:13.4]} 41. Rh5 {[%clk 0:00:14]} 41... Qxa3 {[%clk
0:00:12.9]} 42. Bxg7 {[%clk 0:00:15.1]} 42... Qb2+ {[%clk 0:00:10.6]} 43. Kg3
{[%clk 0:00:16]} 43... Rd2 {[%clk 0:00:07.1]} 44. Bd4 {[%clk 0:00:15.1]} 44...
Rg2+ {[%clk 0:00:08.1]} 45. Kf4 {[%clk 0:00:16.4]} 45... Qb8+ {[%clk 0:00:08.3]}
46. Qe5 {[%clk 0:00:16.4]} 46... Qxe5+ {[%clk 0:00:04.5]} 47. Bxe5 {[%clk
0:00:18.3]} 47... Kh7 {[%clk 0:00:04.3]} 48. h4 {[%clk 0:00:18]} 48... Kg6
{[%clk 0:00:04.4]} 49. Bd4 {[%clk 0:00:19]} 49... f5 {[%clk 0:00:04.6]} 50.
gxf5+ {[%clk 0:00:13.5]} 50... Kxh5 {[%clk 0:00:05.4]} 51. fxe6 {[%clk
0:00:14.7]} 51... Kg6 {[%clk 0:00:05.2]} 52. Ke5 {[%clk 0:00:14.2]} 52... Kg7
{[%clk 0:00:05.8]} 53. Kd6+ {[%clk 0:00:14.8]} 53... Kf8 {[%clk 0:00:07.2]} 54.
Kd7 {[%clk 0:00:16.3]} 54... Re2 {[%clk 0:00:08.1]} 55. Bc5+ {[%clk 0:00:17.5]}
55... Kg7 {[%clk 0:00:09.2]} 56. e7 {[%clk 0:00:19.4]} 56... Kf7 {[%clk
0:00:10.3]} 57. Bd6 {[%clk 0:00:16]} 57... h5 {[%clk 0:00:10.7]} 58. c4 {[%clk
0:00:16.6]} 58... Re3 {[%clk 0:00:07.3]} 59. c5 {[%clk 0:00:17.7]} 59... Re2
{[%clk 0:00:02.9]} 60. c6 {[%clk 0:00:18.9]} 60... Re3 {[%clk 0:00:03.6]} 61. c7
{[%clk 0:00:20]} 61... Rxf3 {[%clk 0:00:04.8]} 62. e8=Q+ {[%clk 0:00:20.5]}
62... Kg7 {[%clk 0:00:06.3]} 63. c8=Q {[%clk 0:00:21]} 63... Rf7+ {[%clk
0:00:06.4]} 64. Qxf7+ {[%clk 0:00:21.8]} 64... Kh6 {[%clk 0:00:08.3]} 65. Qcf8#
{[%clk 0:00:23.5]} 1-0

[Event "*** Titled Tuesday Blitz"]
[Site "Chess.com"]
[Date "2019.01.01"]
[Round "3"]
[White "Torrentec"]
[Black "RandomOracle"]
[Result "0-1"]
[WhiteElo "2328"]
[BlackElo "2187"]
[TimeControl "180+2"]
[EndTime "13:39:20 PST"]
[Termination "RandomOracle won by resignation"]

1. e4 {[%clk 0:03:00.6]} 1... c6 {[%clk 0:03:00.1]} 2. d4 {[%clk 0:03:01.3]}
2... d5 {[%clk 0:03:01.2]} 3. Nc3 {[%clk 0:03:02.7]} 3... dxe4 {[%clk
0:02:58.4]} 4. Nxe4 {[%clk 0:03:02.3]} 4... Nf6 {[%clk 0:02:59.6]} 5. Nxf6+
{[%clk 0:03:03.3]} 5... exf6 {[%clk 0:03:01]} 6. Bc4 {[%clk 0:03:01.1]} 6... Bd6
{[%clk 0:03:00.2]} 7. Nf3 {[%clk 0:02:58.9]} 7... O-O {[%clk 0:02:57.2]} 8. Be3
{[%clk 0:02:59.5]} 8... Be6 {[%clk 0:02:49.5]} 9. Bxe6 {[%clk 0:02:58.9]} 9...
fxe6 {[%clk 0:02:49.7]} 10. O-O {[%clk 0:02:56.9]} 10... Nd7 {[%clk 0:02:37.3]}
11. c4 {[%clk 0:02:57]} 11... e5 {[%clk 0:02:17.9]} 12. d5 {[%clk 0:02:49.9]}
12... c5 {[%clk 0:02:05.7]} 13. Nd2 {[%clk 0:02:35.4]} 13... f5 {[%clk
0:02:05.2]} 14. f3 {[%clk 0:02:32.9]} 14... a6 {[%clk 0:01:55.3]} 15. a4 {[%clk
0:02:24.4]} 15... Qh4 {[%clk 0:01:40]} 16. Bf2 {[%clk 0:02:22.7]} 16... Qh5
{[%clk 0:01:35.7]} 17. g3 {[%clk 0:02:18.2]} 17... Rae8 {[%clk 0:01:35.4]} 18.
Re1 {[%clk 0:02:04.1]} 18... Qg6 {[%clk 0:01:29.9]} 19. Qc2 {[%clk 0:02:01.2]}
19... h5 {[%clk 0:01:29.3]} 20. a5 {[%clk 0:01:54.8]} 20... h4 {[%clk
0:01:28.7]} 21. Ra3 {[%clk 0:01:51.2]} 21... hxg3 {[%clk 0:01:26.2]} 22. hxg3
{[%clk 0:01:50.7]} 22... Nf6 {[%clk 0:01:21.7]} 23. Kg2 {[%clk 0:01:27.3]} 23...
Re7 {[%clk 0:01:10.4]} 24. Rb3 {[%clk 0:01:04.9]} 24... Rfe8 {[%clk 0:01:05.8]}
25. Rb6 {[%clk 0:01:05.4]} 25... Nh5 {[%clk 0:01:01.8]} 26. Rxd6 {[%clk
0:00:58.8]} 26... Qxd6 {[%clk 0:01:00.8]} 27. Qxf5 {[%clk 0:00:59.8]} 27... g6
{[%clk 0:01:00]} 28. Qg5 {[%clk 0:00:55.7]} 28... Qf6 {[%clk 0:00:59]} 29. Qxf6
{[%clk 0:00:52.7]} 29... Nxf6 {[%clk 0:00:59.7]} 30. Bxc5 {[%clk 0:00:54.1]}
30... Rd7 {[%clk 0:00:56.2]} 31. b4 {[%clk 0:00:47.9]} 31... Kf7 {[%clk
0:00:48.3]} 32. g4 {[%clk 0:00:48.8]} 32... Rdd8 {[%clk 0:00:23.2]} 33. Bb6
{[%clk 0:00:41.8]} 33... Rd7 {[%clk 0:00:23.5]} 34. g5 {[%clk 0:00:32.1]} 34...
Nh5 {[%clk 0:00:22.3]} 35. Ne4 {[%clk 0:00:32]} 35... Nf4+ {[%clk 0:00:22.9]}
36. Kf2 {[%clk 0:00:28.4]} 36... Nd3+ {[%clk 0:00:23]} 37. Ke2 {[%clk
0:00:27.8]} 37... Nxe1 {[%clk 0:00:24.8]} 38. Kxe1 {[%clk 0:00:29]} 38... Rc8
{[%clk 0:00:23.3]} 39. Nf6 {[%clk 0:00:25.2]} 39... Rd6 {[%clk 0:00:22.3]} 40.
c5 {[%clk 0:00:20]} 40... Rxf6 {[%clk 0:00:19.1]} 41. gxf6 {[%clk 0:00:21.9]}
41... Kxf6 {[%clk 0:00:20.5]} 42. Ke2 {[%clk 0:00:17.7]} 42... Kf5 {[%clk
0:00:18.7]} 43. Ke3 {[%clk 0:00:18.9]} 43... g5 {[%clk 0:00:18.8]} 44. d6 {[%clk
0:00:17.2]} 44... Ke6 {[%clk 0:00:17.7]} 45. Ke4 {[%clk 0:00:18.5]} 45... Rf8
{[%clk 0:00:18.1]} 46. Bc7 {[%clk 0:00:16.8]} 46... Rf4+ {[%clk 0:00:16.3]} 47.
Ke3 {[%clk 0:00:18]} 47... Kd7 {[%clk 0:00:14.2]} 48. Bb6 {[%clk 0:00:10.8]}
48... Rxb4 {[%clk 0:00:11.3]} 49. Kf2 {[%clk 0:00:11.3]} 49... Ke6 {[%clk
0:00:11.1]} 50. Bd8 {[%clk 0:00:10.1]} 50... Rc4 {[%clk 0:00:10.6]} 51. Bxg5
{[%clk 0:00:09.8]} 51... Rxc5 {[%clk 0:00:10.8]} 52. Be7 {[%clk 0:00:10.6]}
52... Rxa5 {[%clk 0:00:10.5]} 53. Ke3 {[%clk 0:00:12.2]} 53... Rd5 {[%clk
0:00:11.2]} 0-1